[Event "EYCC 2017"]
[Site "Mamaia"]
[Date "2017.09.09"]
[Round "5"]
[White "Allahverdiyeva, Ayan"]
[Black "Nguyen, Thao Nhi"]
[Result "1-0"]
[ECO "B03"]
[WhiteElo "2042"]
[BlackElo "1747"]
[Annotator "NA"]
[PlyCount "57"]
[EventDate "2017.??.??"]
[EventType "swiss"]
[EventCountry "ROU"]
[SourceTitle "playchess.com"]
[Source "ChessBase"]
[SourceQuality "1"]
[TimeControl "40/5400+30:1800+30"]

1. e4 {[%emt 0:00:00]} Nf6 {[%emt 0:00:05]} 2. e5 {[%emt 0:00:00]} Nd5 {[%emt 0:00:06]} 3. d4 {[%emt 0:00:00]} d6 {[%emt 0:00:17]} 4. c4 {[%emt 0:00:00]} Nb6 {[%emt 0:00:08]} 5. f4 {[%emt 0:00:06]} dxe5 {[%emt 0:00:21]} 6. fxe5 {[%emt 0:00:05]} Nc6 {[%emt 0:00:19]} 7. Be3 {[%emt 0:00:07]} Bf5 {[%emt 0:00:40]} 8. Nc3 {[%emt 0:00:30]} e6 {[%emt 0:00:56]} 9. Nf3 {[%emt 0:00:29]} Be7 {[%emt 0:01:12]} 10. d5 {[%emt 0:00:25]} exd5 {[%emt 0:00:35]} 11. cxd5 {[%emt 0:01:16]} Nb4 {[%emt 0:00:38]} 12. Nd4 {[%emt 0:00:33]} Bd7 {[%emt 0:00:21]} 13. e6 {[%emt 0:03:58]} fxe6 {[%emt 0:01:03]} 14. dxe6 {[%emt 0:00:16]} Bc6 {[%emt 0:00:15]} 15. Qg4 {[%emt 0:03:36]} Bh4+ {[%emt 0:05:06]} 16. g3 {[%emt 0:01:16]} O-O {[%emt 0:01:03]} 17. gxh4 {[%emt 0:06:24]} Bxh1 {[%emt 0:03:12]} 18. O-O-O {[%emt 0:00:40]} Qf6 {[%emt 0:02:06]} 19. Be2 {[%emt 0:08:00]} (19. Bh3 $11 N6d5 20. Bg5) 19... Bc6 {[%emt 0:17:28]} 20. Bg5 {[%emt 0:07:06]} Qe5 {[%emt 0:17:49]} 21. e7 {[%emt 0:00:58]} Rfe8 {[%emt 0:02:23]} 22. Nf5 {[%emt 0:02:01]} h5 {[%emt 0:12:39]} 23. Qxb4 {[%emt 0:19:18]} Qxf5 {[%emt 0:00:17]} 24. Bxh5 {[%emt 0:04:51]} g6 {[%emt 0:11:32]} 25. Be2 {[%emt 0:00:19]} a5 {[%emt 0:03:25]} 26. Qd4 {[%emt 0:05:07]} Bd7 {[%emt 0:09:30]} 27. Rf1 {[%emt 0:02:22]} Qh3 {[%emt 0:02:02]} 28. Rf3 {[%emt 0:00:26]} Qxh2 {[%emt 0:01:00]} 29. Bc4+ 1-0

[Event "EYCC 2017"]
[Site "Mamaia"]
[Date "2017.09.09"]
[Round "5"]
[White "Hercog, Nusa"]
[Black "Guillo Longares, Cecilia"]
[Result "1/2-1/2"]
[ECO "A61"]
[WhiteElo "2034"]
[BlackElo "1810"]
[Annotator "NA"]
[PlyCount "86"]
[EventDate "2017.??.??"]
[EventType "swiss"]
[EventCountry "ROU"]
[SourceTitle "playchess.com"]
[Source "ChessBase"]
[SourceQuality "1"]
[TimeControl "40/5400+30:1800+30"]

1. d4 {[%emt 0:00:00]} Nf6 {[%emt 0:00:04]} 2. c4 {[%emt 0:00:00]} c5 {[%emt 0:00:03]} 3. d5 {[%emt 0:00:00]} e6 {[%emt 0:00:04]} 4. Nc3 {[%emt 0:00:02]} exd5 {[%emt 0:00:03]} 5. cxd5 {[%emt 0:00:05]} d6 {[%emt 0:00:07]} 6. Nf3 {[%emt 0:00:16]} g6 {[%emt 0:00:06]} 7. Qa4+ {[%emt 0:00:29]} Bd7 {[%emt 0:01:47]} 8. Qb3 {[%emt 0:00:41]} Qb6 {[%emt 0:03:47]} 9. e4 {[%emt 0:03:33]} Na6 {[%emt 0:07:16]} 10. Bg5 {[%emt 0:03:46]} Bg7 {[%emt 0:00:56]} 11. Qxb6 {[%emt 0:06:03]} axb6 {[%emt 0:00:17]} 12. Nd2 {[%emt 0:01:24]} Nb4 {[%emt 0:02:56]} 13. Rc1 {[%emt 0:04:14]} Kd8 {[%emt 0:14:01]} 14. a3 {[%emt 0:03:51]} Na6 {[%emt 0:00:19]} 15. Bd3 {[%emt 0:20:36]} Kc7 {[%emt 0:02:26]} 16. O-O {[%emt 0:07:10]} Ng4 {[%emt 0:03:40]} 17. h3 {[%emt 0:04:03]} Ne5 {[%emt 0:01:12]} 18. Be2 {[%emt 0:02:20]} f5 {[%emt 0:07:23]} 19. f4 {[%emt 0:13:46]} Nf7 {[%emt 0:02:57]} 20. Bh4 {[%emt 0:02:22]} Rae8 {[%emt 0:06:45]} 21. Bd3 {[%emt 0:02:51]} Nh6 {[%emt 0:08:40]} 22. Rce1 {[%emt 0:05:07]} fxe4 {[%emt 0:02:29]} 23. Ndxe4 {[%emt 0:00:36]} Bd4+ {[%emt 0:01:32]} 24. Bf2 {[%emt 0:01:22]} Nf5 {[%emt 0:00:28]} 25. g4 {[%emt 0:01:51]} Bxf2+ {[%emt 0:00:42]} 26. Kxf2 {[%emt 0:00:53]} Nd4 {[%emt 0:01:01]} 27. Kg3 {[%emt 0:01:18]} Rhf8 {[%emt 0:06:46]} 28. Ne2 {[%emt 0:03:24]} Nxe2+ {[%emt 0:04:04]} 29. Rxe2 {[%emt 0:00:11]} b5 {[%emt 0:00:20]} 30. b3 {[%emt 0:00:58]} Rf7 {[%emt 0:04:46]} 31. Rfe1 {[%emt 0:02:23]} Ref8 {[%emt 0:07:40]} 32. Rf1 {[%emt 0:00:18]} Re8 {[%emt 0:00:14]} 33. Rff2 {[%emt 0:01:00]} Rfe7 {[%emt 0:01:10]} 34. Nf6 {[%emt 0:02:55]} Re3+ {[%emt 0:00:08]} 35. Rxe3 {[%emt 0:00:14]} Rxe3+ {[%emt 0:00:06]} 36. Rf3 {[%emt 0:00:04]} Re7 {[%emt 0:00:06]} 37. Nxd7 {[%emt 0:00:19]} Kxd7 {[%emt 0:00:20]} 38. Bxb5+ {[%emt 0:00:06]} Kd8 {[%emt 0:00:49]} 39. Bxa6 {[%emt 0:02:09]} bxa6 {[%emt 0:00:14]} 40. Kh4 {[%emt 0:00:00]} Ke8 {[%emt 0:04:22]} 41. Kg5 {[%emt 0:15:22]} Kf7 {[%emt 0:01:24]} 42. f5 {[%emt 0:03:25]} gxf5 {[%emt 0:01:28]} 43. Rxf5+ {[%emt 0:02:30]} Kg7 {[%emt 0:00:14]} 1/2-1/2

[Event "EYCC 2017"]
[Site "Mamaia"]
[Date "2017.09.09"]
[Round "5"]
[White "Rogozenco, Teodora"]
[Black "Korchagina, Alena"]
[Result "0-1"]
[ECO "D21"]
[WhiteElo "2024"]
[BlackElo "2158"]
[Annotator "NA"]
[PlyCount "80"]
[EventDate "2017.??.??"]
[EventType "swiss"]
[EventCountry "ROU"]
[SourceTitle "playchess.com"]
[Source "ChessBase"]
[SourceQuality "1"]
[TimeControl "40/5400+30:1800+30"]

1. d4 {[%emt 0:00:00]} d5 {[%emt 0:00:08]} 2. c4 {[%emt 0:00:00]} dxc4 {[%emt 0:00:05]} 3. Nf3 {[%emt 0:04:55]} a6 {[%emt 0:00:24]} 4. e3 {[%emt 0:04:28]} Bg4 {[%emt 0:00:39]} 5. Bxc4 {[%emt 0:02:11]} e6 {[%emt 0:00:06]} 6. O-O {[%emt 0:00:24]} Nc6 {[%emt 0:00:34]} 7. a3 {[%emt 0:09:49]} Nf6 {[%emt 0:00:33]} 8. b4 {[%emt 0:00:32]} Bd6 {[%emt 0:01:16]} 9. Bb2 {[%emt 0:01:03]} O-O {[%emt 0:00:46]} 10. Nbd2 {[%emt 0:05:48]} Qe7 {[%emt 0:04:20]} 11. Qc2 {[%emt 0:08:24]} Rad8 {[%emt 0:06:07]} 12. e4 {[%emt 0:06:47]} e5 {[%emt 0:04:17]} 13. d5 {[%emt 0:00:35]} Nb8 {[%emt 0:00:10]} 14. Be2 {[%emt 0:13:15]} c6 {[%emt 0:21:50]} 15. dxc6 {[%emt 0:05:41]} Rc8 {[%emt 0:04:37]} 16. h3 {[%emt 0:15:35]} Bxf3 {[%emt 0:00:35]} 17. Nxf3 {[%emt 0:00:22]} Nxc6 {[%emt 0:00:10]} 18. Qd3 {[%emt 0:00:50]} Rfd8 {[%emt 0:06:34]} 19. Qe3 {[%emt 0:00:16]} Bb8 {[%emt 0:00:53]} 20. Rac1 {[%emt 0:04:54]} Ba7 {[%emt 0:12:39]} 21. Qg5 {[%emt 0:00:29]} Nxe4 {[%emt 0:03:40]} 22. Qxe7 {[%emt 0:04:05]} Nxe7 {[%emt 0:00:05]} 23. Rxc8 {[%emt 0:09:30]} Rxc8 {[%emt 0:00:25]} 24. Bd3 {[%emt 0:00:19]} Ng3 {[%emt 0:03:54]} 25. Re1 {[%emt 0:00:16]} f6 {[%emt 0:00:40]} 26. Bb1 {[%emt 0:01:51]} Kf8 {[%emt 0:03:48]} 27. Nd2 {[%emt 0:00:37]} Rd8 {[%emt 0:04:22]} 28. Bc1 {[%emt 0:00:12]} g6 {[%emt 0:14:07]} 29. Nc4 {[%emt 0:00:20]} Ne2+ {[%emt 0:01:04]} 30. Kf1 {[%emt 0:00:56]} Nxc1 {[%emt 0:00:46]} 31. Rxc1 {[%emt 0:00:05]} Rc8 {[%emt 0:01:10]} 32. Rc2 {[%emt 0:00:12]} b5 {[%emt 0:00:55]} 33. Nd2 {[%emt 0:00:37]} Rxc2 {[%emt 0:00:23]} 34. Bxc2 {[%emt 0:00:06]} Nf5 {[%emt 0:02:59]} 35. Nb3 {[%emt 0:01:25]} Nd6 {[%emt 0:01:25]} 36. Bd3 {[%emt 0:00:33]} Nc4 {[%emt 0:01:12]} 37. Bxc4 {[%emt 0:00:27]} bxc4 {[%emt 0:00:00]} 38. Na5 {[%emt 0:00:12]} c3 {[%emt 0:00:28]} 39. f3 {[%emt 0:00:41]} c2 {[%emt 0:00:26]} 40. Nb3 {[%emt 0:00:00]} Be3 {[%emt 0:00:05]} 0-1

[Event "EYCC 2017"]
[Site "Mamaia"]
[Date "2017.09.09"]
[Round "5"]
[White "Fiszer, Bartosz"]
[Black "Mogirzan, Matei-Valeriu"]
[Result "1-0"]
[ECO "B41"]
[WhiteElo "2009"]
[BlackElo "1575"]
[Annotator "NA"]
[PlyCount "69"]
[EventDate "2017.??.??"]
[EventType "swiss"]
[EventCountry "ROU"]
[SourceTitle "playchess.com"]
[Source "ChessBase"]
[SourceQuality "1"]
[TimeControl "40/5400+30:1800+30"]

1. e4 {[%emt 0:00:00]} c5 {[%emt 0:00:01]} 2. Nf3 {[%emt 0:00:00]} e6 {[%emt 0:00:04]} 3. d4 {[%emt 0:00:00]} cxd4 {[%emt 0:00:03]} 4. Nxd4 {[%emt 0:00:09]} a6 {[%emt 0:00:01]} 5. c4 {[%emt 0:00:09]} Nf6 {[%emt 0:00:07]} 6. Nc3 {[%emt 0:00:49]} Qc7 {[%emt 0:00:09]} 7. Be2 {[%emt 0:00:23]} Bb4 {[%emt 0:00:29]} 8. O-O {[%emt 0:05:41]} d6 {[%emt 0:01:50]} 9. f3 {[%emt 0:09:35]} Bxc3 {[%emt 0:01:15]} 10. bxc3 {[%emt 0:00:07]} Nbd7 {[%emt 0:00:35]} 11. Bg5 {[%emt 0:00:27]} O-O {[%emt 0:00:46]} 12. Qd2 {[%emt 0:00:42]} Re8 {[%emt 0:06:28]} 13. Rfe1 {[%emt 0:23:47]} b6 {[%emt 0:01:17]} 14. Nb3 {[%emt 0:01:21]} Bb7 {[%emt 0:00:42]} 15. Bf4 {[%emt 0:00:37]} Ne5 {[%emt 0:01:22]} 16. Rad1 {[%emt 0:04:52]} Rad8 {[%emt 0:01:06]} 17. Bxe5 {[%emt 0:01:29]} dxe5 {[%emt 0:00:13]} 18. Qe3 {[%emt 0:00:41]} Nh5 {[%emt 0:06:37]} 19. c5 {[%emt 0:03:41]} b5 {[%emt 0:08:50]} 20. c4 {[%emt 0:05:58]} b4 {[%emt 0:02:16]} 21. a3 {[%emt 0:00:19]} bxa3 {[%emt 0:00:43]} 22. Ra1 {[%emt 0:00:15]} Rd7 {[%emt 0:04:04]} 23. g3 {[%emt 0:01:41]} Red8 {[%emt 0:01:17]} 24. Rxa3 {[%emt 0:02:18]} Nf6 {[%emt 0:07:13]} 25. Rb1 {[%emt 0:03:06]} Bc8 26. Ra2 {[%emt 0:01:40]} Rd4 {[%emt 0:13:13]} 27. Nxd4 {[%emt 0:04:49]} exd4 {[%emt 0:00:49]} 28. Qa3 {[%emt 0:00:15]} d3 {[%emt 0:05:59]} 29. Bxd3 {[%emt 0:02:56]} e5 {[%emt 0:00:27]} 30. Be2 {[%emt 0:02:37]} h5 {[%emt 0:01:52]} 31. Qa5 {[%emt 0:00:50]} Qe7 {[%emt 0:00:25]} 32. Rd1 {[%emt 0:02:23]} Rxd1+ {[%emt 0:00:16]} 33. Bxd1 {[%emt 0:00:08]} h4 {[%emt 0:00:10]} 34. Rd2 {[%emt 0:00:17]} Bh3 {[%emt 0:00:24]} 35. Qd8+ 1-0

[Event "EYCC 2017"]
[Site "Mamaia"]
[Date "2017.09.09"]
[Round "5"]
[White "Srdanovic, Jovana"]
[Black "Beydullayeva, Govhar"]
[Result "0-1"]
[ECO "D00"]
[WhiteElo "1994"]
[BlackElo "2164"]
[Annotator "NA"]
[PlyCount "72"]
[EventDate "2017.??.??"]
[EventType "swiss"]
[EventCountry "ROU"]
[SourceTitle "playchess.com"]
[Source "ChessBase"]
[SourceQuality "1"]
[TimeControl "40/5400+30:1800+30"]

1. d4 {[%emt 0:00:00]} d5 {[%emt 0:00:10]} 2. Bf4 {[%emt 0:00:00]} c5 {[%emt 0:00:08]} 3. e3 {[%emt 0:00:00]} Nc6 {[%emt 0:00:12]} 4. c3 {[%emt 0:00:42]} f6 {[%emt 0:00:17]} 5. Bb5 {[%emt 0:17:16]} a6 {[%emt 0:13:02]} 6. Bxc6+ {[%emt 0:02:26]} bxc6 {[%emt 0:00:03]} 7. Nd2 {[%emt 0:00:50]} g6 {[%emt 0:11:26]} 8. Ngf3 {[%emt 0:04:20]} Nh6 {[%emt 0:05:32]} 9. e4 {[%emt 0:09:06]} Nf7 {[%emt 0:16:31]} 10. O-O {[%emt 0:01:47]} Bg7 {[%emt 0:02:04]} 11. exd5 {[%emt 0:04:57]} cxd5 {[%emt 0:01:18]} 12. Re1 {[%emt 0:02:31]} O-O {[%emt 0:02:35]} 13. Nb3 {[%emt 0:02:44]} cxd4 {[%emt 0:04:52]} 14. cxd4 {[%emt 0:00:56]} Re8 {[%emt 0:00:21]} 15. Rc1 {[%emt 0:06:43]} e5 {[%emt 0:00:34]} 16. Bd2 {[%emt 0:01:09]} e4 {[%emt 0:00:27]} 17. Ba5 {[%emt 0:00:07]} Qd6 {[%emt 0:02:08]} 18. Nfd2 {[%emt 0:01:02]} f5 {[%emt 0:02:14]} 19. Nb1 {[%emt 0:06:26]} Ng5 {[%emt 0:15:19]} 20. Qc2 {[%emt 0:12:11]} Ne6 {[%emt 0:03:00]} 21. Qd2 {[%emt 0:02:41]} Bf6 {[%emt 0:01:40]} 22. Rc3 {[%emt 0:00:41]} Bd7 {[%emt 0:00:30]} 23. Na3 {[%emt 0:01:04]} f4 {[%emt 0:05:38]} 24. Nc2 {[%emt 0:03:37]} Bb5 {[%emt 0:03:38]} 25. Nc5 {[%emt 0:00:50]} Bg5 {[%emt 0:02:08]} 26. Qd1 {[%emt 0:05:17]} Rac8 {[%emt 0:03:26]} 27. Bb4 {[%emt 0:00:51]} Nxc5 {[%emt 0:00:28]} 28. Bxc5 {[%emt 0:00:28]} Qe6 {[%emt 0:00:28]} 29. Na3 {[%emt 0:01:02]} Bd7 {[%emt 0:00:55]} 30. Qe2 {[%emt 0:01:50]} Qf6 {[%emt 0:00:34]} 31. Rb3 {[%emt 0:01:12]} f3 {[%emt 0:00:36]} 32. Qf1 {[%emt 0:00:17]} Bg4 {[%emt 0:01:09]} 33. Rb6 {[%emt 0:01:17]} Qf5 {[%emt 0:00:25]} 34. g3 {[%emt 0:03:02]} e3 {[%emt 0:00:31]} 35. Qxa6 {[%emt 0:01:43]} exf2+ {[%emt 0:00:30]} 36. Kxf2 {[%emt 0:00:04]} Rxe1 {[%emt 0:00:05]} 0-1

[Event "EYCC 2017"]
[Site "Mamaia"]
[Date "2017.09.09"]
[Round "5"]
[White "Jarocka, Liwia"]
[Black "Koubova, Anna Marie"]
[Result "1/2-1/2"]
[ECO "B40"]
[WhiteElo "1970"]
[BlackElo "1805"]
[Annotator "NA"]
[PlyCount "67"]
[EventDate "2017.??.??"]
[EventType "swiss"]
[EventCountry "ROU"]
[SourceTitle "playchess.com"]
[Source "ChessBase"]
[SourceQuality "1"]
[TimeControl "40/5400+30:1800+30"]

1. e4 {[%emt 0:00:00]} c5 {[%emt 0:00:07]} 2. Nf3 {[%emt 0:00:00]} e6 {[%emt 0:00:06]} 3. d4 {[%emt 0:00:00]} cxd4 {[%emt 0:00:17]} 4. Nxd4 {[%emt 0:00:00]} Nf6 {[%emt 0:00:07]} 5. Nc3 {[%emt 0:00:10]} Nc6 {[%emt 0:00:07]} 6. a3 {[%emt 0:00:16]} Be7 {[%emt 0:01:08]} 7. Nxc6 {[%emt 0:01:01] B45: Sicilian Four Knights} bxc6 {[%emt 0:00:49]} 8. e5 {[%emt 0:01:07]} Nd5 {[%emt 0:00:20]} 9. Qg4 {[%emt 0:02:10]} g6 {[%emt 0:06:07]} 10. Ne4 {[%emt 0:00:24]} f5 $146 {[%emt 0:02:16]} ({Predecessor:} 10... d6 11. Nxd6+ Bxd6 12. exd6 Qxd6 13. Qg3 Qxg3 14. hxg3 e5 {1-0 (57) Short,N (2646)-Alfaya Marcelo,R (2097) Madrid 2016}) 11. exf6 {[%emt 0:00:17]} Nxf6 {[%emt 0:00:19]} 12. Nxf6+ {[%emt 0:00:34]} Bxf6 {[%emt 0:00:14]} 13. Bd3 {[%emt 0:01:26]} Qe7 {[%emt 0:13:01]} 14. O-O {[%emt 0:02:32]} O-O {[%emt 0:00:36]} 15. c3 {[%emt 0:04:32]} d5 {[%emt 0:05:04]} 16. Bh6 {[%emt 0:04:31]} Rf7 {[%emt 0:00:54]} 17. Be3 {[%emt 0:05:09]} e5 {[%emt 0:12:05]} 18. Qa4 {[%emt 0:02:38]} Bd7 {[%emt 0:06:36]} 19. Qc2 {[%emt 0:04:36]} e4 {[%emt 0:04:46]} 20. Be2 {[%emt 0:00:42]} Be5 {[%emt 0:01:05]} 21. Bd4 {[%emt 0:04:35]} Bd6 {[%emt 0:01:39]} 22. b4 {[%emt 0:01:30]} Qh4 {[%emt 0:04:39]} 23. g3 {[%emt 0:00:39]} Qh3 {[%emt 0:01:17]} 24. Rfe1 {[%emt 0:01:35]} Bg4 {[%emt 0:04:39]} 25. c4 {[%emt 0:04:14]} Bxe2 {[%emt 0:17:25]} 26. Qxe2 {[%emt 0:01:28]} Rf5 {[%emt 0:02:15]} 27. Qf1 {[%emt 0:03:13]} Qxf1+ {[%emt 0:00:46]} 28. Kxf1 {[%emt 0:00:22]} Be5 {[%emt 0:00:38]} 29. Rad1 {[%emt 0:05:13]} Bxd4 {[%emt 0:03:17]} 30. Rxd4 {[%emt 0:00:07]} Raf8 {[%emt 0:00:17]} 31. Rd2 {[%emt 0:00:57]} Kf7 {[%emt 0:00:52]} 32. b5 {[%emt 0:07:22]} cxb5 {[%emt 0:02:16]} 33. cxd5 {[%emt 0:06:31]} Rd8 $11 {[%emt 0:02:18]} 34. d6 {[%emt 0:11:26]} 1/2-1/2

[Event "EYCC 2017"]
[Site "Mamaia"]
[Date "2017.09.09"]
[Round "5"]
[White "Maurizzi, Marc Andria"]
[Black "Klimkowski, Jan"]
[Result "1-0"]
[ECO "B24"]
[WhiteElo "1947"]
[BlackElo "1761"]
[Annotator "NA"]
[PlyCount "57"]
[EventDate "2017.??.??"]
[EventType "swiss"]
[EventCountry "ROU"]
[SourceTitle "playchess.com"]
[Source "ChessBase"]
[SourceQuality "1"]
[TimeControl "40/5400+30:1800+30"]

1. e4 c5 2. Nc3 Nc6 3. Nf3 g6 4. Bb5 Bg7 5. O-O Nd4 6. Ba4 Rb8 7. Nxd4 cxd4 8. Ne2 b5 9. Bb3 Bb7 10. d3 d5 11. Ng3 dxe4 12. Nxe4 Nf6 13. Nxf6+ Bxf6 14. Bh6 e6 15. a4 b4 16. a5 Bc6 17. Qg4 Bd5 18. Ba4+ Ke7 19. Bg5 Bxg5 20. Qxg5+ f6 21. Qh4 Ba8 22. Rfe1 Qd5 23. f3 g5 24. Qh6 e5 25. Bb3 Qd8 26. Rxe5+ Kd7 27. Qg7+ Kc6 28. Re6+ Kc5 29. Qxa7+ {Kd5} 1-0

[Event "EYCC 2017"]
[Site "Mamaia"]
[Date "2017.09.09"]
[Round "5"]
[White "Verbin, Valentina"]
[Black "Shafigullina, Zarina"]
[Result "1/2-1/2"]
[ECO "A30"]
[WhiteElo "1947"]
[BlackElo "2130"]
[Annotator "NA"]
[PlyCount "59"]
[EventDate "2017.??.??"]
[EventType "swiss"]
[EventCountry "ROU"]
[SourceTitle "playchess.com"]
[Source "ChessBase"]
[SourceQuality "1"]
[TimeControl "40/5400+30:1800+30"]

1. Nf3 {[%emt 0:00:00]} Nf6 {[%emt 0:00:13]} 2. g3 {[%emt 0:00:00]} e6 {[%emt 0:03:20]} 3. c4 {[%emt 0:00:01]} b6 {[%emt 0:00:21]} 4. Bg2 {[%emt 0:00:12]} Bb7 {[%emt 0:01:33]} 5. Nc3 {[%emt 0:00:33]} c5 {[%emt 0:01:06]} 6. O-O {[%emt 0:00:16]} Be7 {[%emt 0:00:23]} 7. d4 {[%emt 0:00:23]} cxd4 {[%emt 0:00:41]} 8. Qxd4 {[%emt 0:01:26]} O-O {[%emt 0:02:22]} 9. Bg5 {[%emt 0:00:56]} h6 {[%emt 0:03:16]} 10. Bxf6 {[%emt 0:00:49]} Bxf6 {[%emt 0:00:32]} 11. Qf4 {[%emt 0:00:30]} Nc6 {[%emt 0:15:04]} 12. Rad1 {[%emt 0:09:41]} Ne7 {[%emt 0:04:50]} 13. Ne5 {[%emt 0:12:53]} Bxe5 {[%emt 0:05:20]} 14. Qxe5 {[%emt 0:01:14]} Bxg2 {[%emt 0:00:07]} 15. Kxg2 {[%emt 0:00:02]} Nf5 {[%emt 0:00:19]} 16. e4 {[%emt 0:01:13]} d6 {[%emt 0:02:10]} 17. Qf4 {[%emt 0:00:56]} Nd4 {[%emt 0:00:35]} 18. Qd2 {[%emt 0:12:39]} e5 {[%emt 0:00:52]} 19. Nb5 {[%emt 0:17:21]} Nxb5 {[%emt 0:00:17]} 20. cxb5 {[%emt 0:00:02]} Qd7 {[%emt 0:00:43]} 21. Qb4 {[%emt 0:00:11]} Qe6 {[%emt 0:11:15]} 22. Rd5 {[%emt 0:06:05]} Rac8 {[%emt 0:03:59]} 23. Rfd1 {[%emt 0:13:29]} Rc5 {[%emt 0:06:34]} 24. b3 {[%emt 0:04:06]} Rd8 {[%emt 0:18:54]} 25. Qd2 {[%emt 0:04:45]} Rxd5 {[%emt 0:00:40]} 26. Qxd5 {[%emt 0:00:05]} Qxd5 {[%emt 0:00:16]} 27. Rxd5 {[%emt 0:00:04]} Kf8 {[%emt 0:01:14]} 28. Rd2 {[%emt 0:06:34]} Rd7 {[%emt 0:02:28]} 29. Rc2 {[%emt 0:00:20]} Ke7 30. Rc8 1/2-1/2

[Event "EYCC 2017"]
[Site "Mamaia"]
[Date "2017.09.09"]
[Round "5"]
[White "Can, Isil"]
[Black "Zhurova, Anna"]
[Result "1/2-1/2"]
[ECO "B77"]
[WhiteElo "1945"]
[BlackElo "1864"]
[Annotator "NA"]
[PlyCount "79"]
[EventDate "2017.??.??"]
[EventType "swiss"]
[EventCountry "ROU"]
[SourceTitle "playchess.com"]
[Source "ChessBase"]
[SourceQuality "1"]
[TimeControl "40/5400+30:1800+30"]

1. e4 {[%emt 0:00:00]} c5 {[%emt 0:00:24]} 2. Nf3 {[%emt 0:02:11]} d6 {[%emt 0:00:33]} 3. d4 {[%emt 0:00:06]} cxd4 {[%emt 0:00:39]} 4. Nxd4 {[%emt 0:00:09]} Nf6 {[%emt 0:00:37]} 5. Nc3 {[%emt 0:00:06]} g6 {[%emt 0:00:58]} 6. Be3 {[%emt 0:00:11]} Bg7 {[%emt 0:00:11]} 7. f3 {[%emt 0:00:12]} O-O {[%emt 0:04:31]} 8. Qd2 {[%emt 0:00:05]} Nc6 {[%emt 0:00:09]} 9. Bc4 {[%emt 0:00:08]} Bd7 {[%emt 0:00:08]} 10. h4 {[%emt 0:00:06]} Qa5 {[%emt 0:00:39]} 11. O-O-O {[%emt 0:00:37]} Rfc8 {[%emt 0:00:35]} 12. Bb3 {[%emt 0:00:13]} Ne5 {[%emt 0:00:19]} 13. h5 {[%emt 0:00:11]} Nxh5 {[%emt 0:01:37]} 14. Nd5 {[%emt 0:01:41]} Qxd2+ {[%emt 0:00:16]} 15. Rxd2 {[%emt 0:00:02]} Kf8 {[%emt 0:05:44]} 16. g4 {[%emt 0:00:43]} Nf6 {[%emt 0:00:08]} 17. Nxf6 {[%emt 0:08:25]} Bxf6 {[%emt 0:00:02]} 18. Rxh7 {[%emt 0:00:14]} Nc4 {[%emt 0:02:27]} 19. Bxc4 {[%emt 0:02:31]} Rxc4 {[%emt 0:00:06]} 20. c3 {[%emt 0:00:45]} Rac8 {[%emt 0:00:55]} 21. Nc2 {[%emt 0:05:54]} Kg8 {[%emt 0:03:59]} 22. Rdh2 {[%emt 0:00:16]} Ba4 {[%emt 0:00:11]} 23. Bxa7 {[%emt 0:21:59]} Bxc2 {[%emt 0:00:47]} 24. Kxc2 {[%emt 0:00:11]} Ra4 {[%emt 0:03:35]} 25. Be3 {[%emt 0:08:48]} Rxa2 {[%emt 0:05:11]} 26. Kb3 {[%emt 0:00:31]} Ra5 27. Bd4 {[%emt 0:03:25]} e5 {[%emt 0:05:12]} 28. Be3 {[%emt 0:00:46]} d5 {[%emt 0:00:46]} 29. exd5 {[%emt 0:10:48]} Rxd5 {[%emt 0:00:24]} 30. Bg5 {[%emt 0:13:56]} Bg7 {[%emt 0:00:54]} 31. Be7 {[%emt 0:00:17]} Rc7 {[%emt 0:03:28]} 32. Bb4 {[%emt 0:00:46]} b5 {[%emt 0:03:03]} 33. R7h3 {[%emt 0:01:57]} Rc4 {[%emt 0:00:55]} 34. Re2 {[%emt 0:02:10]} Rd1 {[%emt 0:04:27]} 35. Kc2 {[%emt 0:01:06]} Rd5 {[%emt 0:02:58]} 36. Re4 {[%emt 0:03:21]} Rdd4 {[%emt 0:09:05]} 37. Rxd4 {[%emt 0:01:26]} exd4 {[%emt 0:00:06]} 38. Kd3 {[%emt 0:00:28]} dxc3 {[%emt 0:00:39]} 39. Bxc3 {[%emt 0:02:42]} Bxc3 {[%emt 0:01:07]} 40. bxc3 {[%emt 0:00:00]} 1/2-1/2

[Event "EYCC 2017"]
[Site "Mamaia"]
[Date "2017.09.09"]
[Round "5"]
[White "Jakab, Kincso"]
[Black "Szucs, Edina"]
[Result "0-1"]
[ECO "C28"]
[WhiteElo "1944"]
[BlackElo "2023"]
[Annotator "NA"]
[PlyCount "56"]
[EventDate "2017.??.??"]
[EventType "swiss"]
[EventCountry "ROU"]
[SourceTitle "playchess.com"]
[Source "ChessBase"]
[SourceQuality "1"]
[TimeControl "40/5400+30:1800+30"]

1. e4 {[%emt 0:00:00]} e5 {[%emt 0:00:10]} 2. Bc4 {[%emt 0:00:00]} Nc6 {[%emt 0:00:36]} 3. Nc3 {[%emt 0:00:16]} Nf6 {[%emt 0:00:16]} 4. d3 {[%emt 0:00:44]} Bc5 {[%emt 0:00:27]} 5. f4 {[%emt 0:00:59]} d6 {[%emt 0:02:53]} 6. Nf3 {[%emt 0:01:31]} Bg4 {[%emt 0:01:37]} 7. h3 {[%emt 0:03:02]} Bxf3 {[%emt 0:02:03]} 8. Qxf3 {[%emt 0:01:20]} Nd4 {[%emt 0:00:45]} 9. Qd1 {[%emt 0:01:02]} Qe7 {[%emt 0:07:57]} 10. f5 {[%emt 0:07:57]} Nd7 {[%emt 0:10:16]} 11. h4 {[%emt 0:05:41]} Nb6 {[%emt 0:00:39]} 12. Nd5 {[%emt 0:07:53]} Nxd5 {[%emt 0:01:13]} 13. Bxd5 {[%emt 0:00:10]} c6 {[%emt 0:00:12]} 14. Bb3 {[%emt 0:00:08]} O-O-O {[%emt 0:02:53]} 15. c3 {[%emt 0:16:45]} Nxb3 {[%emt 0:02:45]} 16. Qxb3 {[%emt 0:00:06]} d5 {[%emt 0:01:02]} 17. Bd2 {[%emt 0:01:11]} dxe4 {[%emt 0:00:28]} 18. dxe4 {[%emt 0:00:16]} Bf2+ {[%emt 0:11:59]} 19. Ke2 {[%emt 0:03:51]} Bxh4 {[%emt 0:05:45]} 20. Rad1 {[%emt 0:03:18]} Bg5 {[%emt 0:02:18]} 21. Rh5 {[%emt 0:02:18]} Rxd2+ {[%emt 0:01:36]} 22. Rxd2 {[%emt 0:00:13]} Bxd2 {[%emt 0:00:06]} 23. Kxd2 {[%emt 0:00:09]} g6 {[%emt 0:00:24]} 24. fxg6 {[%emt 0:01:16]} Rd8+ {[%emt 0:03:19]} 25. Ke2 {[%emt 0:06:41]} hxg6 {[%emt 0:00:30]} 26. Rh7 {[%emt 0:12:58]} Qg5 {[%emt 0:01:03]} 27. Rxf7 {[%emt 0:05:45]} Rd2+ {[%emt 0:03:35]} 28. Ke1 {[%emt 0:00:34]} Qe3+ 0-1